bitfinex-derivatives/quotes_BTCF0:USTF0_20250718
["timestamp","ask_amount","ask_price","bid_price","bid_amount"]
[1752815934904,0.93080197,120530.0,120520.0,0.3334777]
[1752815935101,0.93080197,120530.0,120520.0,0.62414882]
[1752815935605,1.29160197,120530.0,120520.0,0.62414882]
[1752815936105,1.29160197,120530.0,120520.0,0.3334777]
[1752815936298,1.29160197,120530.0,120520.0,0.62414882]
[1752815936599,0.93080197,120530.0,120520.0,0.62414882]
[1752815936804,1.29160197,120530.0,120520.0,0.62414882]
[1752815937101,0.76472807,120530.0,120520.0,0.62414882]
[1752815937402,1.12552807,120530.0,120520.0,0.3334777]
[1752815937603,1.12552807,120530.0,120520.0,0.62414882]
[1752815937904,1.12552807,120530.0,120520.0,0.61341882]
[1752815938207,1.29132207,120530.0,120520.0,0.3227477]
[1752815938396,0.93052207,120530.0,120520.0,0.61341882]
[1752815938705,1.29132207,120530.0,120520.0,0.61341882]
[1752815938901,0.65044207,120530.0,120520.0,0.61341882]
[1752815939100,0.65044207,120530.0,120520.0,0.09609]
[1752815939305,0.65044207,120530.0,120520.0,0.2453177]
[1752815939306,1.29120207,120530.0,120520.0,0.2453177]
[1752815939706,1.29120207,120530.0,120520.0,0.2616377]
[1752815940104,0.12384807,120530.0,120520.0,0.61170882]
[1752815940403,0.3608,120550.0,120540.0,0.3208702]
[1752815940603,1.1672864,120550.0,120540.0,0.3208702]
[1752815940805,1.29091846,120550.0,120540.0,0.07937]
[1752815940999,1.29091846,120550.0,120540.0,0.2451502]
[1752815941202,0.76431206,120550.0,120540.0,0.61154132]
[1752815941399,0.28939856,120550.0,120540.0,0.3208702]
[1752815941602,1.29083856,120550.0,120540.0,0.61154132]
[1752815941905,0.65019856,120550.0,120540.0,0.61150088]
[1752815942105,0.29039856,120550.0,120540.0,0.61150088]
[1752815942406,0.93099846,120550.0,120540.0,0.61150088]
[1752815942607,0.76523206,120550.0,120540.0,0.61150088]
[1752815942807,0.76419206,120550.0,120540.0,0.61150088]
[1752815943009,0.92995846,120550.0,120540.0,0.61250088]
[1752815943905,0.76419206,120550.0,120540.0,0.61250088]
[1752815944507,0.65019846,120550.0,120540.0,0.26242976]
[1752815944706,1.29071846,120550.0,120540.0,0.27037976]
[1752815945002,1.29071846,120550.0,120540.0,0.26242976]
[1752815945208,1.29067846,120550.0,120540.0,0.26242976]
[1752815945407,0.65019846,120550.0,120540.0,0.26242976]
[1752815945607,1.29063846,120550.0,120540.0,0.26242976]
[1752815945807,0.76407206,120550.0,120540.0,0.61150088]
[1752815946008,1.29063846,120550.0,120540.0,0.32082976]
[1752815946805,1.29063846,120550.0,120540.0,0.61150088]
[1752815948010,1.29063846,120550.0,120540.0,0.32082976]
[1752815948309,1.29063846,120550.0,120540.0,0.61150088]
[1752815948609,0.92983846,120550.0,120540.0,0.61150088]
[1752815948810,1.29163846,120550.0,120540.0,0.61150088]
[1752815949007,1.12587206,120550.0,120540.0,0.61150088]
[1752815949208,1.29163846,120550.0,120540.0,0.61150088]
[1752815949611,1.12587206,120550.0,120540.0,0.61150088]
[1752815949913,1.12571206,120550.0,120540.0,0.32082976]
[1752815950112,1.12571206,120550.0,120540.0,0.61150088]
[1752815950408,0.48543206,120550.0,120540.0,0.61150088]
[1752815950709,0.3608,120580.0,120570.0,0.3208289]
[1752815951013,1.12558768,120580.0,120570.0,0.61150002]
[1752815951413,1.29131288,120580.0,120570.0,0.3208289]
[1752815951613,1.29131288,120580.0,120570.0,0.2614289]
[1752815952010,1.29131288,120580.0,120570.0,0.2624289]
[1752815952313,1.29131288,120580.0,120570.0,0.2703789]
[1752815952611,1.29231288,120580.0,120570.0,0.2703789]
[1752815953511,1.29231288,120580.0,120570.0,0.2693789]
[1752815955814,1.29231288,120580.0,120570.0,0.3208289]
[1752815958218,0.65211288,120580.0,120570.0,0.3208289]
[1752815958417,1.29199288,120580.0,120570.0,0.3208289]
[1752815958620,1.12614768,120580.0,120570.0,0.61150002]
[1752815958817,0.76534768,120580.0,120570.0,0.61150002]
[1752815959112,0.12558768,120580.0,120570.0,0.61150002]
[1752815959317,1.29187278,120580.0,120570.0,0.61150002]
[1752815959715,0.65211278,120580.0,120570.0,0.61150002]
[1752815959916,1.12610768,120580.0,120570.0,0.61150002]
[1752815960112,0.76530768,120580.0,120570.0,0.61250002]
[1752815960521,0.64064,120580.0,120570.0,0.97330002]
[1752815961121,0.63964,120580.0,120570.0,0.97330002]
[1752815961420,1.00044,120590.0,120580.0,0.15178]
[1752815961621,0.5265114,120590.0,120580.0,0.73246412]
[1752815961817,1.29076746,120590.0,120580.0,0.73246412]
[1752815962019,1.12505606,120590.0,120580.0,0.73246412]
[1752815962921,0.76425606,120590.0,120580.0,0.73246412]
[1752815963116,0.76425606,120590.0,120580.0,1.09326412]
[1752815963421,0.12465606,120590.0,120580.0,0.73246412]
[1752815963623,1.12493606,120590.0,120580.0,0.73246412]
[1752815964017,0.76413606,120590.0,120580.0,0.73246412]
[1752815964217,0.92984746,120590.0,120580.0,0.73246412]
[1752815964619,1.29064746,120590.0,120580.0,0.73246412]
[1752815964820,1.29060746,120590.0,120580.0,0.73246412]
[1752815965124,0.92980746,120590.0,120580.0,0.73246412]
[1752815965421,1.29060746,120590.0,120580.0,0.73246412]
[1752815965621,0.92980746,120590.0,120580.0,0.73246412]
[1752815966922,1.29060746,120590.0,120580.0,0.69103372]
[1752815967123,0.92980746,120590.0,120580.0,0.69103372]
[1752815967323,1.29040746,120590.0,120580.0,0.4003626]
[1752815967519,0.92960746,120590.0,120580.0,0.4003626]
[1752815967720,1.29040746,120590.0,120580.0,0.4003626]
[1752815967916,0.92960746,120590.0,120580.0,0.4003626]
[1752815968225,1.29040746,120590.0,120580.0,0.4003626]
[1752815969623,0.92960746,120590.0,120580.0,0.4003626]
[1752815970924,1.29040746,120590.0,120580.0,0.4003626]
[1752815971119,1.29016746,120590.0,120580.0,0.4003626]
[1752815971423,0.92936746,120590.0,120580.0,0.2581952]
[1752815971624,1.29016746,120590.0,120580.0,0.2581952]
[1752815972222,0.92936746,120590.0,120580.0,0.2581952]
[1752815972423,1.29016746,120590.0,120580.0,0.2581952]
[1752815972621,0.93236746,120590.0,120580.0,0.2581952]
[1752815972925,1.29316746,120590.0,120580.0,0.2581952]
[1752815973126,1.29316746,120590.0,120580.0,0.60817632]
[1752815973424,0.93220746,120590.0,120580.0,0.60817632]
[1752815973825,1.29300746,120590.0,120580.0,0.60817632]
[1752815974524,1.29300746,120590.0,120580.0,0.3175052]
[1752815974924,1.29300746,120590.0,120580.0,0.60817632]
[1752815975526,0.93220746,120590.0,120580.0,0.60817632]
[1752815975826,0.93220746,120590.0,120580.0,0.3175052]
[1752815976124,0.93220746,120590.0,120580.0,0.60817632]
[1752815976319,0.29336746,120590.0,120580.0,0.60817632]
[1752815976521,0.93204746,120590.0,120580.0,0.60817632]
[1752815976716,0.29336746,120590.0,120580.0,0.60817632]
[1752815976924,0.003,120590.0,120580.0,1.13483232]
[1752815977727,0.001,120590.0,120580.0,1.60757632]
[1752815978725,0.8042978,120600.0,120590.0,0.2250214]
[1752815978925,0.2485359,120610.0,120600.0,0.3174777]
[1752815979226,0.8870559,120610.0,120600.0,0.60814882]
[1752815979425,1.2478559,120610.0,120600.0,0.60814882]
[1752815980227,1.2478159,120610.0,120600.0,0.60814882]
[1752815980628,0.8870159,120610.0,120600.0,0.60814882]
[1752815981232,0.8890159,120610.0,120600.0,0.60814882]
[1752815981424,0.8920159,120610.0,120600.0,0.60814882]
[1752815981828,1.2528159,120610.0,120600.0,0.60814882]
[1752815982330,0.8920159,120610.0,120600.0,0.60814882]
[1752815982531,0.8091733,120610.0,120600.0,0.60814882]
[1752815983034,1.1699733,120610.0,120600.0,0.60814882]
[1752815983827,1.1697639,120610.0,120600.0,0.60814882]
[1752815984034,0.005,120610.0,120600.0,0.96894882]
[1752815984534,0.005,120610.0,120600.0,0.97609882]
[1752815984932,0.005,120610.0,120600.0,1.26676994]
[1752815985432,0.005,120610.0,120600.0,0.97609882]
[1752815989138,0.005,120610.0,120600.0,0.61529882]
[1752815989838,0.17060716,120620.0,120610.0,0.2215839]
[1752815990138,0.16561716,120620.0,120610.0,0.60105502]
[1752815990337,0.12413632,120620.0,120610.0,0.60105502]
[1752815990538,0.08265608,120620.0,120610.0,0.60105502]
[1752815990732,0.1656812,120620.0,120610.0,0.72531192]
[1752815990933,0.12720096,120620.0,120610.0,0.72531192]
[1752815991235,0.13120096,120620.0,120610.0,0.72531192]
[1752815991436,0.04830092,120620.0,120610.0,0.73602192]
[1752815991633,1.23936625,120620.0,120590.0,0.07408]
[1752815991833,1.01227112,120600.0,120570.0,0.0888]
[1752815992038,0.1657389,120570.0,120560.0,0.06555734]
[1752815992339,0.1657526,120560.0,120550.0,0.2398413]
[1752815992532,0.5674505,120570.0,120560.0,0.1657526]
[1752815992732,0.5679635,120580.0,120560.0,0.55967962]
[1752815992936,0.6789502,120590.0,120580.0,0.1657251]
[1752815993132,1.2294881,120610.0,120600.0,0.0888]
[1752815993439,0.2899925,120600.0,120590.0,0.2397893]
[1752815993741,0.7331391,120600.0,120590.0,0.2397893]
[1752815993932,0.7331391,120600.0,120590.0,0.2545093]
[1752815994132,0.6502853,120600.0,120590.0,0.54518042]
[1752815994336,0.9269115,120600.0,120590.0,0.54618042]
[1752815994740,0.7612139,120600.0,120590.0,0.54618042]
[1752815994941,0.7611739,120600.0,120590.0,0.54518042]
[1752815995436,1.1219739,120600.0,120590.0,0.54518042]
[1752815995642,0.7611739,120600.0,120590.0,0.2555093]
[1752815995841,0.7611739,120600.0,120590.0,0.54618042]
[1752815996236,0.7611739,120600.0,120590.0,0.2555093]
[1752815996541,0.6502715,120600.0,120590.0,0.2555093]
[1752815996844,1.20466517,120600.0,120590.0,0.2555093]
[1752815997042,0.8030176,120600.0,120590.0,0.2555093]
[1752815997243,0.84526637,120600.0,120590.0,0.2555093]
[1752815997443,0.76234004,120600.0,120590.0,0.2555093]
[1752815997638,0.84511131,120600.0,120590.0,0.2555093]
[1752815997843,0.76218498,120600.0,120590.0,0.54618042]
[1752815998043,0.67925865,120600.0,120590.0,0.54618042]
[1752815998243,0.59633232,120600.0,120590.0,0.2555093]
[1752815998444,0.51340599,120600.0,120590.0,0.54618042]
[1752815999244,0.87420599,120600.0,120590.0,0.54618042]
[1752815999845,0.87420599,120600.0,120590.0,0.55380042]
[1752816000042,0.87420599,120600.0,120590.0,0.2555093]
[1752816000242,0.6516727,120600.0,120590.0,0.2407914]
[1752816000546,1.2887927,120600.0,120590.0,0.2407914]
[1752816000748,1.2897927,120600.0,120590.0,0.2407914]
[1752816000948,1.2897927,120600.0,120590.0,0.2397914]
[1752816001145,1.2897527,120600.0,120590.0,0.2397914]
[1752816001446,1.2897527,120600.0,120590.0,0.07408]
[1752816001741,0.1657114,120590.0,120580.0,0.2397941]
[1752816001947,0.5265114,120590.0,120580.0,0.1657141]
[1752816002148,0.65015337,120590.0,120580.0,0.1657141]
[1752816002539,1.28719337,120590.0,120580.0,0.2397941]
[1752816003549,1.28819337,120590.0,120580.0,0.2397941]
[1752816004153,0.48644197,120590.0,120580.0,0.2397941]
[1752816004348,1.28919337,120590.0,120580.0,0.2545141]
[1752816005151,1.28919337,120590.0,120580.0,0.60108522]
[1752816005649,1.28919337,120590.0,120580.0,0.3104141]
[1752816006049,1.28819337,120590.0,120580.0,0.3104141]
[1752816006250,1.28919337,120590.0,120580.0,0.3104141]
[1752816006951,1.28819337,120590.0,120580.0,0.2621341]
[1752816008153,1.28819337,120590.0,120580.0,0.2545141]
[1752816009052,1.28819337,120590.0,120580.0,0.2397941]
[1752816009554,1.28819337,120590.0,120580.0,0.2545141]
[1752816009856,1.28819337,120590.0,120580.0,0.2621341]
[1752816011055,1.28819337,120590.0,120580.0,0.50970626]
[1752816011254,1.28819337,120590.0,120580.0,0.2621341]
[1752816011453,1.28819337,120590.0,120580.0,0.50970626]
[1752816012549,0.12464197,120590.0,120580.0,0.55798626]
[1752816012754,0.92703337,120590.0,120580.0,0.55798626]
[1752816012957,0.12464197,120590.0,120580.0,0.55798626]
[1752816013257,0.29035337,120590.0,120580.0,0.3104141]
[1752816013457,0.92691337,120590.0,120580.0,0.55798626]
[1752816014049,0.76120197,120590.0,120580.0,0.55798626]
[1752816014855,0.76120197,120590.0,120580.0,0.3104141]
[1752816015159,0.92591337,120590.0,120580.0,0.55798626]
[1752816015459,0.92591337,120590.0,120580.0,0.55898626]
[1752816015660,0.28935337,120590.0,120580.0,0.55898626]
[1752816015866,1.28659337,120590.0,120580.0,0.55898626]
[1752816016063,0.28935337,120590.0,120580.0,0.55898626]
[1752816016362,1.28655337,120590.0,120580.0,0.55898626]
[1752816017061,0.76004197,120590.0,120580.0,0.55898626]
[1752816017462,1.28655337,120590.0,120580.0,0.55898626]
[1752816017964,0.92575337,120590.0,120580.0,0.55898626]
[1752816018262,0.93438337,120590.0,120580.0,0.55898626]
[1752816018762,1.29518337,120590.0,120580.0,0.55898626]
[1752816019164,1.29518337,120590.0,120580.0,0.3114141]
[1752816019363,0.72595337,120590.0,120580.0,0.55898626]
[1752816019559,0.72595337,120590.0,120580.0,0.48836626]
[1752816019765,1.36219337,120590.0,120580.0,0.48836626]
[1752816020366,1.34645337,120590.0,120580.0,0.58286626]
[1752816020662,1.34645337,120590.0,120580.0,0.3342941]
[1752816020966,1.34645337,120590.0,120580.0,0.58186626]
[1752816020967,0.72056337,120590.0,120580.0,0.58186626]
[1752816021267,1.36311337,120590.0,120580.0,0.51596626]
[1752816021666,0.72695337,120590.0,120580.0,0.51596626]
[1752816021863,0.71125337,120590.0,120580.0,0.58186626]
[1752816022163,1.33488337,120590.0,120580.0,0.58186626]
[1752816022567,1.33388337,120590.0,120580.0,0.58186626]
[1752816022761,1.35768337,120590.0,120580.0,0.58186626]
[1752816022961,1.35768337,120590.0,120580.0,0.3342941]
[1752816023161,1.35768337,120590.0,120580.0,0.58186626]
[1752816023462,0.72156337,120590.0,120580.0,0.58186626]
[1752816023767,1.36295337,120590.0,120580.0,0.51596626]
[1752816025068,1.36295337,120590.0,120580.0,0.50624626]
[1752816025969,1.36295337,120590.0,120580.0,0.48736626]
[1752816027370,1.37036609,120590.0,120580.0,0.48736626]
[1752816027872,1.37036609,120590.0,120580.0,0.2397941]
[1752816028769,1.36295337,120590.0,120580.0,0.2397941]
[1752816029262,1.36295337,120590.0,120580.0,0.48736626]
[1752816030165,1.36295337,120590.0,120580.0,0.2397941]
[1752816030770,0.72695337,120590.0,120580.0,0.2397941]
[1752816030970,1.36251337,120590.0,120580.0,0.1657141]
[1752816031574,1.37009501,120590.0,120580.0,0.1657141]
[1752816031872,0.72695337,120590.0,120580.0,0.1657141]
[1752816032172,1.36243337,120590.0,120580.0,0.2633941]
[1752816036075,1.36219337,120590.0,120580.0,0.51096626]
[1752816036279,0.69776337,120590.0,120580.0,0.60546626]
[1752816036474,1.33300337,120590.0,120580.0,0.60546626]
[1752816036976,1.33300337,120590.0,120580.0,0.3578941]
[1752816037175,1.33300337,120590.0,120580.0,0.60546626]
[1752816037478,1.33200337,120590.0,120580.0,0.60546626]
[1752816038278,1.33200337,120590.0,120580.0,0.3578941]
[1752816038475,1.33200337,120590.0,120580.0,0.60646626]
[1752816038977,1.34549337,120590.0,120580.0,0.60646626]
[1752816039179,0.72595337,120590.0,120580.0,0.60646626]
[1752816039373,0.72595337,120590.0,120580.0,0.3588941]
[1752816039578,1.36095337,120590.0,120580.0,0.60646626]
[1752816039779,0.72595337,120590.0,120580.0,0.60646626]
[1752816039979,1.36091337,120590.0,120580.0,0.60646626]
[1752816040277,1.36091337,120590.0,120580.0,0.3588941]
[1752816040478,1.36091337,120590.0,120580.0,0.51196626]
[1752816040678,1.36087337,120590.0,120580.0,0.2643941]
[1752816041283,1.36087337,120590.0,120580.0,0.2142241]
[1752816041479,1.36087337,120590.0,120580.0,0.1667141]
[1752816041881,0.72695337,120590.0,120580.0,0.51096626]
[1752816042081,0.72695337,120590.0,120580.0,0.54429626]
[1752816042281,1.33256337,120590.0,120580.0,0.60546626]
[1752816042582,1.33356337,120590.0,120580.0,0.60546626]
[1752816042881,0.97276337,120590.0,120580.0,0.60546626]
[1752816043382,1.33356337,120590.0,120580.0,0.60546626]
[1752816043679,0.97176337,120590.0,120580.0,0.60546626]
[1752816043982,0.97276337,120590.0,120580.0,0.60546626]
[1752816044586,1.33256337,120590.0,120580.0,0.60546626]
[1752816044878,0.97276337,120590.0,120580.0,0.60546626]
[1752816045076,0.29898337,120590.0,120580.0,0.60546626]
[1752816045279,0.93358337,120590.0,120580.0,0.60546626]
[1752816045777,0.48544197,120590.0,120580.0,0.60546626]
[1752816046082,0.48544197,120590.0,120580.0,0.96626626]
[1752816046083,0.63556,120590.0,120580.0,0.96626626]
[1752816046277,0.8012714,120590.0,120580.0,0.60546626]
[1752816046683,0.8089014,120590.0,120580.0,0.60546626]
[1752816046883,0.64319,120590.0,120580.0,0.60546626]
[1752816047381,0.64319,120590.0,120580.0,0.60646626]
[1752816047582,0.64319,120590.0,120580.0,0.60746626]
[1752816047978,0.8468814,120590.0,120580.0,0.60746626]
[1752816048179,0.8468814,120590.0,120580.0,0.60846626]
[1752816049683,0.8468814,120590.0,120580.0,0.3608941]
[1752816049886,0.8468814,120590.0,120580.0,0.60846626]
[1752816050185,0.8468814,120590.0,120580.0,0.60746626]
[1752816051186,0.8468814,120590.0,120580.0,0.3598941]
[1752816051387,0.8468814,120590.0,120580.0,0.60746626]
[1752816051587,0.8468814,120590.0,120580.0,0.60646626]
[1752816051780,0.55164415,120590.0,120580.0,0.60646626]
[1752816052588,0.71735555,120590.0,120580.0,0.60646626]
[1752816054184,0.76000555,120590.0,120580.0,0.3588941]
[1752816054490,0.76000555,120590.0,120580.0,0.60646626]
[1752816054789,0.71735555,120590.0,120580.0,0.60646626]
[1752816054985,0.6325775,120620.0,120610.0,0.206864]
[1752816055190,1.2664975,120620.0,120610.0,0.60384616]
[1752816055384,0.73574024,120620.0,120610.0,0.60384616]
[1752816055585,1.36962024,120620.0,120610.0,0.356274]
[1752816055887,0.5616155,120630.0,120620.0,0.2293002]
[1752816056085,1.2029555,120630.0,120620.0,0.60383236]
[1752816056290,1.32669429,120630.0,120620.0,0.60383236]
[1752816056882,0.71956429,120630.0,120620.0,0.2831702]
[1752816057087,1.35336429,120630.0,120620.0,0.2629502]
[1752816057385,1.35436429,120630.0,120620.0,0.2629502]
[1752816057889,0.72056429,120630.0,120620.0,0.2629502]
[1752816058089,1.35428429,120630.0,120620.0,0.53074236]
[1752816058290,1.35528429,120630.0,120620.0,0.2926302]
[1752816058488,1.35528429,120630.0,120620.0,0.54020236]
[1752816058689,1.35528429,120630.0,120620.0,0.57192236]
[1752816058890,1.35528429,120630.0,120620.0,0.3562602]
[1752816059190,1.35528429,120630.0,120620.0,0.60383236]
[1752816060290,1.35528429,120630.0,120620.0,0.3562602]
[1752816060490,1.35528429,120630.0,120620.0,0.60383236]
[1752816060884,1.35528429,120630.0,120620.0,0.2831702]
[1752816061082,0.2104503,120620.0,120610.0,0.44790906]
[1752816061288,0.5992403,120620.0,120610.0,0.61358126]
[1752816061485,0.72297204,120620.0,120610.0,0.62304126]
[1752816061689,0.72297204,120620.0,120610.0,0.292644]
[1752816061992,1.35645204,120620.0,120610.0,0.292644]
[1752816062189,0.72297204,120620.0,120610.0,0.12696]
[1752816062397,0.233404,120610.0,120600.0,0.3246165]
[1752816062688,1.232654,120610.0,120600.0,0.3660407]
[1752816062889,1.35720343,120610.0,120600.0,0.3660407]
[1752816063196,1.35720343,120610.0,120600.0,0.61361286]
[1752816063395,1.35720343,120610.0,120600.0,0.3660407]
[1752816063597,1.35720343,120610.0,120600.0,0.61361286]
[1752816063796,1.35820343,120610.0,120600.0,0.3660407]
[1752816065293,0.2104778,120600.0,120590.0,0.3660567]
[1752816065497,0.5992678,120600.0,120590.0,0.3660567]
[1752816065693,0.72439253,120600.0,120590.0,0.3660567]
[1752816065893,0.72439253,120600.0,120590.0,0.61362886]
[1752816066596,0.72439253,120600.0,120590.0,0.62408886]
[1752816067099,0.69640253,120600.0,120590.0,0.68771886]
[1752816067298,0.96872253,120600.0,120590.0,0.68771886]
[1752816067601,0.33560253,120600.0,120590.0,0.68771886]
[1752816067899,1.32952253,120600.0,120590.0,0.68771886]
[1752816068195,1.32952253,120600.0,120590.0,0.4401467]
[1752816068402,1.33052253,120600.0,120590.0,0.68771886]
[1752816068701,1.33052253,120600.0,120590.0,0.68671886]
[1752816069201,1.33052253,120600.0,120590.0,0.4391467]
[1752816069402,1.33052253,120600.0,120590.0,0.68671886]
[1752816070298,0.72034253,120600.0,120590.0,0.68671886]
[1752816070600,1.35835253,120600.0,120590.0,0.68671886]
[1752816070801,0.72539253,120600.0,120590.0,0.68671886]
[1752816071001,1.35326253,120600.0,120590.0,0.68671886]
[1752816071594,1.33032253,120600.0,120590.0,0.68671886]
[1752816071801,1.33028253,120600.0,120590.0,0.68671886]
[1752816072402,0.69740253,120600.0,120590.0,0.68671886]
[1752816072807,0.96944253,120600.0,120590.0,0.68671886]
[1752816073306,1.33024253,120600.0,120590.0,0.68671886]
[1752816073507,0.96944253,120600.0,120590.0,0.68671886]
[1752816073805,0.80374473,120600.0,120590.0,0.68671886]
[1752816074006,0.96936253,120600.0,120590.0,0.4391467]
[1752816074207,0.96936253,120600.0,120590.0,0.68671886]
[1752816074506,1.33016253,120600.0,120590.0,0.68671886]
[1752816074900,0.71003253,120600.0,120590.0,0.68671886]
[1752816075098,1.34275253,120600.0,120590.0,0.68671886]
[1752816075301,1.33012253,120600.0,120590.0,0.68671886]
[1752816076109,1.34275253,120600.0,120590.0,0.3977189]
[1752816076309,0.72539253,120600.0,120590.0,0.60387366]
[1752816076502,1.35803253,120600.0,120590.0,0.60387366]
[1752816077108,0.99723253,120600.0,120590.0,0.60387366]
[1752816077306,1.35803253,120600.0,120590.0,0.60387366]
[1752816078705,1.35803253,120600.0,120590.0,0.3563015]
[1752816078907,1.35803253,120600.0,120590.0,0.60387366]
[1752816079407,1.35803253,120600.0,120590.0,0.40625216]
[1752816079607,0.2076415,120590.0,120580.0,0.3132822]
[1752816079804,0.5947115,120590.0,120580.0,0.3627222]
[1752816080004,0.71980126,120590.0,120580.0,0.4369222]
[1752816081608,0.72080126,120590.0,120580.0,0.4369222]
[1752816081807,0.72080126,120590.0,120580.0,0.3964912]
[1752816082109,0.72080126,120590.0,120580.0,0.3631512]
[1752816082406,0.72080126,120590.0,120580.0,0.3621512]
[1752816082902,0.72080126,120590.0,120580.0,0.3954912]
[1752816083300,1.35308126,120590.0,120580.0,0.64306336]
[1752816083602,1.34852126,120590.0,120580.0,0.64306336]
[1752816084102,1.34852126,120590.0,120580.0,0.3954912]
[1752816084304,1.35308126,120590.0,120580.0,0.64306336]
[1752816085306,0.75836976,120590.0,120580.0,0.64306336]
[1752816086005,0.3608,120620.0,120610.0,0.1656841]
[1752816086205,0.633462,120630.0,120620.0,0.3540103]
[1752816086411,0.651612,120630.0,120620.0,0.60158246]
[1752816086611,0.79821958,120630.0,120620.0,0.60158246]
[1752816086810,1.43037958,120630.0,120620.0,0.60158246]
[1752816087015,0.79821958,120630.0,120620.0,0.60158246]
[1752816087210,0.79821958,120630.0,120620.0,0.3540103]
[1752816087211,1.43033958,120630.0,120620.0,0.3540103]
[1752816087407,1.43033958,120630.0,120620.0,0.60158246]
[1752816087606,1.43033958,120630.0,120620.0,0.3540103]
[1752816087808,1.43033958,120630.0,120620.0,0.60158246]
[1752816088004,0.79921958,120630.0,120620.0,0.60158246]
[1752816088208,1.43129958,120630.0,120620.0,0.60158246]
[1752816088405,0.2344803,120620.0,120610.0,0.09465]
[1752816088610,0.234494,120610.0,120600.0,0.3626816]
[1752816088811,0.595294,120610.0,120600.0,0.3626816]
[1752816089110,1.35241788,120610.0,120600.0,0.4035416]
[1752816089413,0.72041788,120610.0,120600.0,0.362118]
[1752816089613,1.59999004,120610.0,120600.0,0.09465]
[1752816090015,1.59999004,120610.0,120600.0,0.2603478]
[1752816090016,1.35241788,120610.0,120600.0,0.2603478]
[1752816090615,0.72041788,120610.0,120600.0,0.2798378]
[1752816090910,1.35229788,120610.0,120600.0,0.2892178]
[1752816092115,0.72041788,120610.0,120600.0,0.2892178]
[1752816092315,1.35233788,120610.0,120600.0,0.2892178]
[1752816092516,1.35221788,120610.0,120600.0,0.2892178]
[1752816093417,1.35221788,120610.0,120600.0,0.3206978]
[1752816093619,1.35221788,120610.0,120600.0,0.60160996]
[1752816094725,1.35221788,120610.0,120600.0,0.3540378]
[1752816094921,1.35213788,120610.0,120600.0,0.2798378]
[1752816095925,1.35213788,120610.0,120600.0,0.3540378]
[1752816095926,0.72041788,120610.0,120600.0,0.3540378]
[1752816096126,1.32559788,120610.0,120600.0,0.60160996]
[1752816096321,0.76405388,120610.0,120600.0,0.60160996]
[1752816096526,1.29053798,120610.0,120600.0,0.60160996]
[1752816096828,1.11752388,120610.0,120600.0,0.60160996]
[1752816097126,0.92240798,120610.0,120600.0,0.60160996]
[1752816097625,0.75672388,120610.0,120600.0,0.60160996]
[1752816098123,0.29080788,120610.0,120600.0,0.3540378]
[1752816098428,0.92240788,120610.0,120600.0,0.60160996]
[1752816098622,0.96471788,120610.0,120600.0,0.60160996]
[1752816098826,1.32539788,120610.0,120600.0,0.60160996]
[1752816099229,0.69391788,120610.0,120600.0,0.60160996]
[1752816099430,1.32539788,120610.0,120600.0,0.60160996]
[1752816101933,0.96443788,120610.0,120600.0,0.60160996]
[1752816102226,0.5115606,120620.0,120600.0,0.84918212]
[1752816102227,0.3608,120620.0,120600.0,0.84918212]
[1752816102526,0.12393083,120620.0,120610.0,0.65313206]
[1752816102928,0.12393083,120620.0,120610.0,0.76727206]
[1752816105134,0.12393083,120620.0,120610.0,0.77480362]
[1752816105433,0.12393083,120620.0,120610.0,1.13560362]
[1752816105633,0.04103887,120620.0,120610.0,1.13560362]
[1752816105830,0.6515882,120640.0,120630.0,0.3345066]
[1752816106135,1.40629671,120640.0,120630.0,0.60156876]
[1752816106430,1.28840141,120640.0,120630.0,0.60156876]
[1752816106832,1.20550945,120640.0,120630.0,0.60156876]
[1752816107033,0.96262141,120640.0,120630.0,0.60156876]
[1752816107234,0.96358141,120640.0,120630.0,0.60156876]
[1752816109236,0.79793851,120640.0,120630.0,0.60156876]
[1752816109428,0.29027141,120640.0,120630.0,0.60156876]
[1752816109833,0.34483141,120640.0,120630.0,0.60156876]
[1752816111639,0.34483141,120640.0,120630.0,0.3539966]
[1752816111832,0.34483141,120640.0,120630.0,0.60156876]
[1752816112036,0.34483141,120640.0,120630.0,0.96236876]
[1752816112638,0.34483141,120640.0,120630.0,1.02861101]
[1752816113539,0.27951571,120640.0,120630.0,0.66781101]
[1752816113734,0.19663001,120640.0,120630.0,0.66781101]
[1752816114039,0.33845107,120640.0,120630.0,0.66781101]
[1752816114440,0.32089107,120640.0,120630.0,0.66781101]
[1752816114836,0.30332107,120640.0,120630.0,0.66781101]
[1752816115439,0.17882106,120640.0,120630.0,0.66781101]
[1752816115740,0.80934106,120640.0,120630.0,0.66781101]
[1752816116339,0.97498386,120640.0,120630.0,0.42023885]
[1752816116536,0.97482386,120640.0,120630.0,0.66781101]
[1752816116736,0.80918106,120640.0,120630.0,0.66781101]
[1752816117839,0.13394106,120640.0,120630.0,1.02861101]
[1752816118142,0.12426106,120640.0,120630.0,1.02861101]
[1752816118641,0.12426106,120640.0,120630.0,0.66781101]
[1752816118839,0.12426106,120640.0,120630.0,1.02861101]
[1752816120837,0.13394106,120640.0,120630.0,0.78103885]
[1752816121042,0.13394106,120640.0,120630.0,1.02861101]
[1752816121043,0.17882106,120640.0,120630.0,1.02861101]
[1752816121242,0.17882106,120640.0,120630.0,0.78103885]
[1752816121437,0.17882106,120640.0,120630.0,1.02861101]
[1752816121639,0.34446396,120640.0,120630.0,1.02861101]
[1752816122041,0.34446396,120640.0,120630.0,0.78103885]
[1752816122241,0.34446396,120640.0,120630.0,1.02861101]
[1752816122747,0.17882106,120640.0,120630.0,1.02861101]
[1752816123246,0.34446396,120640.0,120630.0,1.02861101]
[1752816123639,0.17882106,120640.0,120630.0,1.02861101]
[1752816124040,0.17882106,120640.0,120630.0,0.66781101]
[1752816125048,0.13394106,120640.0,120630.0,0.66781101]
[1752816125241,0.12426106,120640.0,120630.0,0.42023885]
[1752816125441,0.12426106,120640.0,120630.0,0.66781101]
[1752816126145,0.13394106,120640.0,120630.0,0.66781101]
[1752816126548,0.13394106,120640.0,120630.0,0.42023885]
[1752816126848,0.13394106,120640.0,120630.0,0.66781101]
[1752816127647,0.12426106,120640.0,120630.0,0.66781101]
[1752816128142,0.34755396,120640.0,120630.0,0.42023885]
[1752816128348,0.99367612,120640.0,120630.0,0.18038225]
[1752816128645,0.99367612,120640.0,120630.0,0.06624225]
[1752816128846,0.2105167,120630.0,120620.0,0.330577]
[1752816129045,0.6218567,120630.0,120620.0,0.330577]
[1752816129246,0.74652031,120630.0,120620.0,0.407607]
[1752816129548,1.37620031,120630.0,120620.0,0.407607]
[1752816129951,1.21054361,120630.0,120620.0,0.65517916]
[1752816130152,1.33845031,120630.0,120620.0,0.407607]
[1752816130344,1.33845031,120630.0,120620.0,0.65517916]
[1752816130745,1.62373247,120630.0,120620.0,0.10221]
[1752816131152,1.62373247,120630.0,120620.0,0.2678804]
[1752816131653,1.62373247,120630.0,120620.0,0.2891604]
[1752816131953,1.37616031,120630.0,120620.0,0.2998504]
[1752816132149,0.51201361,120630.0,120620.0,0.57972256]
[1752816132348,0.12466361,120630.0,120620.0,0.97456256]
[1752816132654,0.12466361,120630.0,120620.0,0.7269904]